bitfinex/quotes_ETHUSD_20251120
["timestamp","ask_amount","ask_price","bid_price","bid_amount"]
[1763609650802,0.002,3045.4,3045.3,9.68438793]
[1763609651131,0.002,3045.4,3045.3,9.65155045]
[1763609653103,0.002,3045.4,3045.3,13.11855045]
[1763609654103,0.002,3045.4,3045.3,4.70174136]
[1763609654446,0.002,3045.4,3045.3,5.23457884]
[1763609656341,0.002,3045.4,3045.3,5.20174136]
[1763609656773,0.002,3045.4,3045.3,4.80174136]
[1763609658549,0.002,3045.4,3045.3,5.20174136]
[1763609659081,0.4563,3045.4,3045.3,3.38374872]
[1763609659283,0.9362,3045.4,3045.3,3.38374872]
[1763609659636,0.9362,3045.4,3045.3,0.1]
[1763609660362,0.9362,3045.4,3045.3,3.38374872]
[1763609660769,0.002,3045.4,3045.3,3.38374872]
[1763609661066,0.002,3045.4,3045.3,3.78374872]
[1763609661559,0.002,3045.4,3045.3,5.23457884]
[1763609664042,0.002,3045.8,3045.3,5.23457884]
[1763609664043,0.002,3046.9,3046.2,3.467]
[1763609664249,0.002,3046.9,3046.8,0.1]
[1763609664598,0.1886,3046.9,3046.8,0.1]
[1763609664758,0.6429,3046.9,3046.8,0.1]
[1763609665077,0.002,3046.9,3046.8,3.38213207]
[1763609670551,0.002,3046.9,3046.8,4.98912471]
[1763609670801,0.002,3046.9,3046.8,5.61405857]
[1763609671800,0.002,3046.9,3046.8,5.20012471]
[1763609672282,0.002,3046.9,3046.8,5.61405857]
[1763609674055,0.002,3046.9,3046.8,6.01956257]
[1763609674259,0.002,3046.9,3046.8,6.45335728]
[1763609674590,1e-08,3047.3,3047.2,0.45]
[1763609674792,1e-08,3047.3,3047.2,0.761]
[1763609675090,1e-08,3047.3,3047.2,1.161]
[1763609675390,1e-08,3047.3,3047.2,1.29233291]
[1763609676261,1e-08,3047.3,3047.2,1.32514992]
[1763609676497,1e-08,3047.3,3047.2,1.29233291]
[1763609676862,1e-08,3047.3,3047.2,4.57403414]
[1763609680369,1e-08,3047.3,3047.2,5.48102678]
[1763609680675,1e-08,3047.3,3047.2,5.92777765]
[1763609680878,0.002,3047.7,3047.6,0.15]
[1763609681071,1e-08,3047.9,3047.8,0.4]
[1763609681270,1e-08,3047.9,3047.8,0.93281055]
[1763609681488,1e-08,3047.9,3047.8,0.9]
[1763609681662,1e-08,3047.9,3047.8,0.93130618]
[1763609681868,1e-08,3047.9,3047.8,1.47805059]
[1763609682781,1e-08,3047.9,3047.8,5.85204323]
[1763609683474,1e-08,3047.9,3047.8,9.13309841]
[1763609683793,1e-08,3047.9,3047.8,9.10028786]
[1763609684180,0.002,3048.0,3047.9,0.90699264]
[1763609684379,0.002,3048.7,3048.1,0.45]
[1763609684585,0.002,3048.7,3048.6,1.40699264]
[1763609684894,0.002,3048.7,3048.6,1.96799264]
[1763609685112,0.002,3048.7,3048.6,2.00079458]
[1763609685407,0.002,3048.7,3048.6,2.41472844]
[1763609685574,0.002,3048.7,3048.6,6.36142262]
[1763609685964,0.1988,3049.7,3049.0,0.05]
[1763609686313,0.6787,3050.3,3050.2,0.1]
[1763609686508,1.1725,3050.3,3050.2,0.1]
[1763609687702,1.1725,3050.3,3050.2,3.37847354]
[1763609689416,1.1725,3050.3,3050.2,0.1]
[1763609689581,1.1725,3050.3,3049.6,0.111]
[1763609689793,0.6926,3050.3,3050.2,3.37847354]
[1763609690124,0.1988,3050.3,3050.2,3.37847354]
[1763609690270,1.1725,3050.3,3050.2,0.1]
[1763609690470,1.1725,3050.3,3050.2,3.37847354]
[1763609692573,3.99283096,3051.1,3050.2,13.51389416]
[1763609692574,0.1988,3050.7,3050.2,13.51389416]
[1763609692781,0.1988,3050.7,3050.6,0.1]
[1763609693006,0.6926,3050.7,3050.6,0.1]
[1763609693217,1.1725,3050.7,3050.6,0.1]
[1763609693374,0.1988,3051.1,3050.6,0.1]
[1763609693375,0.6787,3051.1,3050.6,0.111]
[1763609693594,0.6787,3051.1,3051.0,0.1]
[1763609693809,0.6787,3051.1,3051.0,3.37761389]
[1763609694132,1.1725,3051.1,3051.0,3.37761389]
[1763609694411,0.6926,3051.1,3051.0,3.48861389]
[1763609694613,1.1725,3051.1,3051.0,3.37761389]
[1763609697410,0.4938,3051.1,3051.0,3.27761389]
[1763609697602,0.604304,3052.0,3051.5,0.1]
[1763609697603,0.4799,3051.6,3051.5,0.1]
[1763609697941,0.9737,3051.6,3051.5,3.37707684]
[1763609700540,0.4938,3051.6,3051.5,3.37707684]
[1763609701036,0.9737,3051.6,3051.5,3.48807684]
[1763609701206,0.1988,3052.0,3051.5,3.48807684]
[1763609701409,0.4938,3051.6,3051.5,3.48807684]
[1763609701603,0.4799,3051.9,3051.8,0.1]
[1763609701948,0.1988,3052.2,3052.1,0.1]
[1763609702330,0.1988,3052.4,3052.3,0.1]
[1763609702721,0.6926,3052.4,3052.3,0.1]
[1763609703333,1.1725,3052.4,3052.2,3.27632527]
[1763609703523,1.1725,3052.4,3052.3,0.1]
[1763609703524,0.1988,3052.4,3052.3,0.1]
[1763609703902,1.1725,3052.4,3052.3,0.1]
[1763609704339,1.1725,3052.4,3052.3,3.37621793]
[1763609704728,1.1725,3052.4,3052.3,0.1]
[1763609705482,1.1725,3052.4,3050.8,0.15]
[1763609705483,0.405504,3052.3,3050.8,0.15]
[1763609705775,1.262604,3052.3,3050.9,4.89940849]
[1763609705977,0.405504,3052.2,3052.1,0.1]
[1763609706143,0.885404,3052.2,3052.1,0.1]
[1763609706343,1.378004,3052.2,3052.1,0.1]
[1763609706964,0.9725,3052.2,3052.1,0.1]
[1763609707345,0.4926,3052.2,3052.1,0.1]
[1763609707878,0.4799,3052.8,3052.1,0.4]
[1763609708085,0.4799,3052.8,3052.7,0.1]
[1763609708577,0.9617,3052.8,3052.7,0.1]
[1763609708777,0.9617,3052.8,3052.7,3.37578864]
[1763609709282,0.9617,3052.8,3052.7,0.1]
[1763609709459,1.57395326,3052.8,3052.7,0.1]
[1763609709790,0.405504,3052.7,3052.6,0.1]
[1763609709945,0.1988,3053.0,3052.9,0.1]
[1763609710458,0.6806,3053.0,3052.9,3.37557404]
[1763609710657,1.1742,3053.0,3052.9,3.37557404]
[1763609710855,1.1742,3053.0,3052.3,6.55243586]
[1763609711055,0.1988,3053.0,3052.9,0.1]
[1763609711454,1.1742,3053.0,3052.9,0.1]
[1763609712080,1.579704,3053.0,3052.9,0.1]
[1763609712299,2.06521623,3053.0,3052.9,0.1]
[1763609713403,1.579704,3053.0,3052.9,0.1]
[1763609713768,5.76216339,3053.0,3052.9,0.1]
[1763609713971,0.405504,3052.8,3052.7,0.1]
[1763609714275,0.516504,3052.8,3052.7,0.1]
[1763609714606,1.385604,3052.8,3052.7,0.1]
[1763609714771,1.87160459,3052.8,3052.7,0.1]
[1763609715105,5.14728593,3052.8,3052.7,0.1]
[1763609715303,4.66128534,3052.8,3052.7,0.1]
[1763609717011,1.385604,3052.8,3052.7,0.1]
[1763609717618,8.24212669,3052.8,3051.1,0.90699264]
[1763609717933,0.4818,3051.2,3051.1,0.1]
[1763609718315,0.1975,3051.4,3051.3,0.1]
[1763609718511,0.1975,3051.4,3051.3,3.37729164]
[1763609718810,0.6793,3051.4,3051.3,3.37729164]
[1763609719002,1.1729,3051.4,3051.3,3.37729164]
[1763609719509,0.4936,3052.2,3051.3,10.34854783]
[1763609719716,0.4936,3052.1,3052.0,0.1]
[1763609720214,1.380904,3052.1,3052.0,0.1]
[1763609720438,1.68649364,3052.1,3052.0,0.1]
[1763609720577,6.04966826,3052.1,3052.0,0.1]
[1763609720978,6.04966826,3052.1,3050.8,3.27779025]
[1763609720979,23.68472589,3052.1,3050.3,0.05]
[1763609721179,0.405504,3050.5,3049.5,6.5584522]
[1763609721488,0.7903,3050.6,3049.5,10.3150783]
[1763609721687,1.17929938,3051.9,3049.5,10.3150783]
[1763609721688,0.111,3050.7,3050.0,4.52932715]
[1763609721915,0.1975,3050.9,3050.8,0.1]
[1763609722115,0.4936,3051.1,3051.0,0.1]
[1763609722291,0.405504,3051.1,3049.8,1.01799264]
[1763609722493,0.405504,3051.1,3051.0,0.1]
[1763609722717,3.68301047,3051.1,3051.0,0.1]
[1763609722887,0.405504,3050.9,3050.8,0.1]
[1763609723083,0.71134341,3050.9,3050.8,0.1]
[1763609723291,1.88424341,3050.9,3049.3,0.1]
[1763609723601,0.1303,3049.6,3049.5,0.1]
[1763609723997,0.6911,3050.2,3049.8,0.1]
[1763609724212,0.1975,3050.9,3050.4,0.1]
[1763609724213,0.6911,3050.5,3050.4,0.1]
[1763609724418,0.714004,3050.5,3050.4,0.1]
[1763609724609,1.689404,3050.5,3050.4,0.1]
[1763609725306,0.405504,3050.4,3050.3,0.1]
[1763609725501,0.6793,3050.5,3050.4,0.1]
[1763609725802,0.6911,3050.9,3050.8,0.1]
[1763609726115,0.8021,3050.9,3050.8,0.1]
[1763609726309,1.689404,3050.9,3050.8,0.1]
[1763609726711,0.405504,3050.8,3049.9,3.27871521]
[1763609726919,0.901804,3050.8,3050.7,0.1]
[1763609727302,1.394204,3050.8,3050.7,0.1]
[1763609727835,2.30119664,3050.8,3050.7,0.1]
[1763609728035,2.30119664,3050.8,3049.1,0.90699264]
[1763609728205,2.30119664,3050.8,3048.6,0.001]
[1763609728206,0.405504,3050.3,3048.6,0.001]
[1763609728399,0.4924,3048.7,3048.6,0.001]
[1763609728602,0.185,3049.0,3048.9,0.1]
[1763609728803,0.111,3049.1,3048.6,0.51730194]
[1763609729110,0.111,3049.1,3049.0,0.1]
[1763609729436,0.6034,3049.1,3049.0,0.1]
[1763609729937,0.111,3049.2,3049.1,0.1]
[1763609730305,0.6034,3049.2,3049.1,0.1]
[1763609730642,1.0997,3049.2,3049.1,0.1]
[1763609731323,1.505204,3049.2,3049.1,0.1]
[1763609731521,1.6742244,3049.2,3049.1,0.1]
[1763609732525,5.86076577,3049.2,3049.1,0.1]
[1763609732721,2.47021704,3049.2,3049.1,0.1]
[1763609733062,0.405504,3049.1,3049.0,0.1]
[1763609733425,1.009504,3049.1,3049.0,0.1]
[1763609735059,5.19615293,3049.1,3049.0,0.1]
[1763609735556,0.405504,3048.9,3048.8,0.1]
[1763609736064,1.394204,3048.9,3048.8,0.1]
[1763609736556,1.505204,3048.9,3048.8,0.1]
[1763609736860,1.394204,3048.9,3048.8,0.1]
[1763609737060,1.505204,3048.9,3048.8,0.1]
[1763609738127,6.26125487,3048.9,3048.8,0.1]
[1763609740637,2.98138345,3048.9,3048.8,0.1]
[1763609740977,1.80489664,3048.9,3048.8,0.1]
[1763609741165,1.91589664,3048.9,3048.8,0.1]
[1763609741466,2.41329664,3048.9,3048.8,0.1]
[1763609742025,0.405504,3048.7,3048.6,0.101]
[1763609742275,0.512204,3048.7,3048.6,0.101]
[1763609742443,1.86833795,3048.7,3048.6,0.101]
[1763609742990,1.86833795,3048.7,3048.6,0.001]
[1763609743360,6.05541718,3048.7,3048.6,0.001]
[1763609746132,12.60641718,3048.7,3048.6,0.001]
[1763609747575,12.60641718,3048.7,3048.6,0.101]
[1763609748394,12.60641718,3048.7,3047.1,0.001]
[1763609748395,0.471,3048.4,3047.1,0.001]
[1763609748686,6.30972379,3048.1,3047.1,0.001]
[1763609749187,6.80712379,3048.1,3047.1,0.001]
[1763609749397,1.31249664,3048.0,3047.1,0.101]
[1763609749559,5.97272379,3047.2,3047.1,0.001]
[1763609749750,6.38835448,3047.2,3047.1,0.001]
[1763609749955,6.88575448,3047.2,3047.1,0.001]
[1763609750352,2.24542733,3047.2,3047.1,0.001]
[1763609750657,1.94079664,3047.2,3047.1,0.101]
[1763609751172,2.05179664,3047.2,3047.1,0.101]
[1763609751487,5.33349787,3047.2,3047.1,0.101]
[1763609751687,2.05179664,3047.2,3047.1,0.101]
[1763609751889,5.33349787,3047.2,3047.1,0.101]
[1763609752252,1.55439664,3047.2,3047.1,0.101]
[1763609752678,2.05179664,3047.2,3047.1,0.101]
[1763609753196,5.53867753,3047.2,3047.1,0.101]
[1763609753556,5.53867753,3047.2,3047.1,0.001]
[1763609754994,5.84340386,3047.2,3047.1,0.001]
[1763609755403,5.73240386,3047.2,3047.1,0.001]
[1763609755687,5.84340386,3047.2,3047.1,0.001]
[1763609756014,0.4974,3047.9,3047.1,0.4727]
[1763609756308,0.4974,3047.9,3047.7,0.1]
[1763609756309,4.29904782,3047.8,3047.7,0.1]
[1763609756459,5.50656246,3047.8,3047.7,0.1]
[1763609756653,1.31249664,3047.7,3047.6,0.1]
[1763609756891,2.63486787,3047.7,3047.6,0.1]
[1763609757191,3.16817187,3047.7,3047.6,0.1]
[1763609757362,6.04383071,3047.7,3047.6,0.1]
[1763609757891,5.95193471,3047.7,3047.6,0.1]
[1763609758086,6.06293471,3047.7,3047.6,0.1]
[1763609758303,0.54341064,3047.7,3047.6,0.1]
[1763609758502,0.111,3047.7,3047.6,0.1]
[1763609758663,0.516504,3047.7,3047.6,0.1]
[1763609759301,0.405504,3047.7,3047.6,0.5717]
[1763609759529,0.516504,3047.7,3047.6,0.5717]
[1763609759991,0.516504,3047.7,3047.6,0.1]
[1763609760387,0.516504,3047.7,3047.6,3.8529705]
[1763609760388,0.111,3047.7,3047.6,3.8529705]
[1763609760955,0.111,3047.7,3047.6,0.1]
[1763609761191,7.32478672,3048.9,3047.6,0.1]
[1763609761192,0.3053366,3048.4,3047.6,4.2338705]
[1763609761358,0.111,3048.8,3048.7,0.1]
[1763609761971,0.516504,3048.8,3048.7,0.1]
[1763609762195,0.111,3048.8,3048.7,0.1]
[1763609763082,5.67187564,3048.8,3048.7,0.1]
[1763609763405,6.87250798,3048.8,3048.7,0.1]
[1763609763609,3.59252898,3048.8,3048.7,0.1]
[1763609763974,1.89449664,3048.8,3048.7,0.1]
[1763609764175,1.42349664,3048.8,3048.7,0.1]
[1763609764498,0.516504,3048.8,3048.7,0.5717]
[1763609764803,0.987504,3048.8,3048.7,0.1]
[1763609764973,4.764883,3048.8,3048.7,0.1]
[1763609765171,5.56934801,3048.8,3048.7,0.1]
[1763609765371,6.78190426,3048.8,3048.7,0.1]
[1763609765605,6.47634065,3048.8,3048.7,0.1]
[1763609765971,6.47634065,3048.8,3047.3,3.28153316]
[1763609765972,0.405504,3048.7,3047.4,3.28148296]
[1763609766170,2.11546142,3048.7,3048.3,0.1]
[1763609766371,0.405504,3048.4,3048.3,0.1]
[1763609767203,0.405504,3048.3,3048.2,0.1]
[1763609767383,0.533304,3048.3,3048.2,0.1]
[1763609767579,1.030704,3048.3,3048.2,0.1]
[1763609768909,5.21821364,3048.3,3048.2,0.1]
[1763609769117,2.87824908,3048.3,3048.2,0.1]
[1763609769271,1.93769664,3048.3,3048.2,0.1]
[1763609769878,5.21821364,3048.3,3048.2,0.1]
[1763609770090,0.405504,3048.1,3047.4,3.281469]
[1763609770287,0.516504,3048.0,3047.9,0.1]
[1763609770581,1.479704,3048.0,3047.9,0.1]
[1763609770794,1.71837366,3048.0,3047.9,0.1]
[1763609771396,0.516504,3048.0,3047.9,0.4776]
[1763609771707,0.516504,3048.0,3047.9,0.5776]
[1763609771899,0.516504,3048.0,3047.9,3.85854753]
[1763609772213,0.516504,3048.0,3047.9,1.0281]
[1763609772414,0.516504,3048.0,3047.9,0.5776]
[1763609772911,0.111,3048.0,3047.9,4.30904753]
[1763609773090,0.111,3048.0,3047.9,3.85854753]
[1763609773291,0.111,3048.0,3047.3,0.4505]
[1763609773493,0.516504,3048.0,3047.9,0.1]
[1763609773693,0.98692225,3048.0,3047.9,0.1]
[1763609774012,0.516504,3048.0,3047.9,0.5776]
[1763609774803,0.516504,3048.0,3047.9,0.1]
[1763609775410,0.516504,3048.0,3047.9,0.5776]
[1763609776506,0.516504,3048.0,3047.9,0.1]
[1763609777214,0.405504,3047.9,3047.5,3.28133713]
[1763609777422,0.405504,3047.9,3047.8,0.1]
[1763609778218,0.111,3048.0,3047.2,0.4505]
[1763609778398,0.111,3048.0,3047.9,0.1]
[1763609778796,0.994304,3048.0,3047.9,0.1]
[1763609780220,1.479704,3048.0,3047.9,0.1]
[1763609780555,0.994304,3048.0,3047.9,0.1]
[1763609781722,6.44,3048.7,3048.5,0.1]
[1763609782020,6.44,3048.7,3048.6,0.1]
[1763609782021,1.63163914,3048.7,3048.6,0.1]
[1763609782527,1.74263914,3048.7,3048.6,0.1]
[1763609782721,0.111,3048.7,3048.6,0.1]
[1763609782917,0.516504,3048.7,3048.6,0.5776]
[1763609783316,0.002,3048.8,3048.7,0.1]
[1763609783623,0.407504,3048.8,3048.7,0.1]
[1763609785695,0.407504,3048.8,3048.7,3.85768659]
[1763609786033,0.405504,3048.7,3048.6,0.1]
[1763609786230,0.133,3048.7,3048.6,0.1]
[1763609786431,1.93089664,3048.7,3048.6,0.1]
[1763609786597,1.8842901,3048.7,3048.6,0.1]
[1763609786797,2.79128274,3048.7,3048.6,0.1]
[1763609787615,0.405504,3048.6,3047.9,0.001]
[1763609787826,0.405504,3048.6,3047.9,0.101]
[1763609787827,0.573004,3048.0,3047.9,0.101]
[1763609788011,0.684004,3048.0,3047.9,0.101]
[1763609788327,1.46214312,3048.0,3047.9,0.101]
[1763609788627,1.46223899,3048.0,3047.9,0.101]
[1763609789222,2.16927736,3048.0,3047.9,0.001]
[1763609789401,6.6625163,3048.0,3047.9,0.001]
[1763609789722,7.54730302,3048.0,3047.9,0.001]
[1763609790237,6.6625163,3048.0,3047.9,0.001]
[1763609790609,6.5515163,3048.0,3047.9,0.101]
[1763609790814,6.6625163,3048.0,3047.9,0.101]
[1763609792027,2.63187641,3048.0,3047.9,0.101]
[1763609792227,5.31667793,3048.0,3047.9,0.101]
[1763609792429,2.03583804,3048.0,3047.9,0.101]
[1763609792634,5.77377793,3048.0,3047.9,0.101]
[1763609793107,6.24507793,3048.0,3047.9,0.001]
[1763609793939,6.95149171,3048.0,3047.9,0.001]
[1763609794308,1.31249664,3047.9,3047.5,0.001]
[1763609794504,0.573004,3047.6,3047.5,0.001]
[1763609794754,0.99093899,3047.6,3047.5,0.001]
[1763609795043,2.16865277,3047.6,3047.5,0.001]
[1763609795216,2.05765277,3047.6,3047.5,0.001]
[1763609795419,2.16865277,3047.6,3047.5,0.001]
[1763609795643,3.52718953,3047.6,3047.5,0.001]
[1763609795841,4.41197625,3047.6,3047.5,0.001]
[1763609796137,6.80846003,3047.6,3047.5,0.001]
[1763609796945,6.80766606,3047.6,3047.5,0.001]
[1763609800563,6.80766606,3047.6,3047.1,0.001]
[1763609800564,1.31249664,3047.5,3047.1,0.001]
[1763609800761,0.859704,3047.2,3047.1,0.001]
[1763609800961,0.76034102,3047.2,3047.1,0.001]
[1763609801257,0.90699264,3047.5,3047.3,0.1]
[1763609801459,0.405504,3047.3,3047.2,0.4503]
[1763609801627,0.111,3047.3,3047.2,0.4503]
[1763609801826,0.111,3047.3,3047.2,0.5503]
[1763609802058,0.111,3047.3,3047.2,0.1]
[1763609802557,4.70509018,3047.3,3047.2,0.1]
[1763609802757,3.79809754,3047.3,3047.2,0.1]
[1763609803057,1.31249664,3047.2,3047.1,0.2693]
[1763609803263,0.516504,3047.2,3047.1,0.7196]
[1763609803452,1.42349664,3047.2,3047.1,0.7196]
[1763609804958,5.6479076,3047.2,3047.1,0.1]
[1763609805147,6.1362076,3047.2,3047.1,0.1]
[1763609805343,5.6479076,3047.2,3047.1,0.1]
[1763609806330,1.31249664,3047.2,3047.1,0.7196]
[1763609806679,0.516504,3047.2,3047.1,1.1854]
[1763609807899,0.516504,3047.2,3047.1,0.1]
[1763609808259,0.516504,3047.2,3047.1,0.7196]
[1763609811305,0.405504,3047.4,3047.1,0.7196]
[1763609811606,0.405504,3047.4,3047.3,0.5503]
[1763609811770,3.28111992,3047.8,3047.3,0.4503]
[1763609811971,1.01799264,3047.7,3047.6,0.1]
[1763609812197,2.31735305,3047.7,3047.5,0.1]
[1763609812409,0.405504,3047.6,3047.5,0.1]
[1763609812591,2.08632765,3047.6,3047.5,0.1]
[1763609812899,5.36759815,3047.6,3047.5,0.1]
[1763609813109,5.40058567,3047.6,3047.5,0.1]
[1763609813275,0.405504,3047.4,3047.1,0.1]
[1763609813478,0.516504,3047.3,3047.2,0.1]
[1763609813894,0.988704,3047.3,3047.2,0.1]
[1763609814987,5.17729018,3047.3,3047.2,0.1]
[1763609816286,5.01192202,3047.3,3047.2,0.1]
[1763609816501,5.48412202,3047.3,3047.2,0.1]
[1763609816810,6.13115337,3047.3,3047.2,0.1]
[1763609817008,6.61945337,3047.3,3047.2,0.1]
[1763609818611,6.13115337,3047.3,3047.2,0.1]
[1763609820210,1.31249664,3047.2,3047.0,0.001]
[1763609820511,1.31249664,3047.2,3046.7,0.001]
[1763609820512,1.31249664,3047.0,3046.7,0.001]
[1763609820696,1.060204,3046.8,3046.7,0.001]
[1763609820897,2.0747983,3046.8,3046.7,0.001]
[1763609821099,2.76232848,3046.8,3046.7,0.001]
[1763609821302,4.35972189,3046.8,3046.7,0.001]
[1763609821619,1.31249664,3046.7,3046.4,0.001]
[1763609821781,1.62679664,3046.5,3046.4,0.001]
[1763609821987,2.75256186,3046.5,3046.4,0.001]
[1763609822320,3.24086186,3046.5,3046.4,0.001]
[1763609822522,3.65340358,3046.5,3046.4,0.001]
[1763609823611,6.93585885,3046.5,3046.4,0.001]
[1763609827007,6.82485885,3046.5,3046.4,0.001]
[1763609827215,6.44755885,3046.5,3046.4,0.001]
[1763609827410,6.93585885,3046.5,3046.4,0.001]
[1763609828223,7.82041424,3046.5,3046.4,0.001]
[1763609828827,0.405504,3046.4,3046.1,0.001]
[1763609829132,0.874404,3046.2,3046.1,0.001]
[1763609829427,1.88916922,3046.2,3046.1,0.001]
[1763609829635,1.29283584,3046.2,3046.1,0.001]
[1763609829842,6.64530696,3046.2,3046.1,0.001]
[1763609832498,0.405504,3046.0,3045.8,0.001]
[1763609832701,0.943504,3045.9,3045.8,0.001]
[1763609833002,2.98301759,3045.9,3045.8,0.001]
[1763609833328,8.43973395,3045.9,3045.8,0.001]
[1763609833529,8.40674643,3045.9,3045.8,0.001]
[1763609833730,0.405504,3045.8,3044.5,0.101]
[1763609834044,1.31249664,3045.1,3044.5,0.101]
[1763609834202,0.405504,3044.9,3044.5,0.101]
[1763609834530,1.61932848,3044.9,3044.5,0.101]
[1763609834731,0.405504,3044.7,3044.5,0.101]
[1763609834942,0.111,3044.6,3044.5,0.101]
[1763609835553,0.111,3044.6,3044.5,0.5532]
[1763609835702,0.111,3044.6,3044.5,1.0413]
[1763609836146,4.30249635,3044.6,3044.5,1.0413]
[1763609836364,4.30249635,3044.6,3044.5,0.5532]
[1763609837151,0.90699264,3044.6,3044.5,1.0413]
[1763609837352,1.42349664,3044.6,3044.5,1.0413]
[1763609837563,1.31249664,3044.6,3044.5,1.0413]
[1763609837867,1.89299664,3044.6,3044.5,0.101]
[1763609838021,5.36680001,3044.6,3044.5,0.001]
[1763609839441,4.89730001,3044.6,3044.5,0.001]
[1763609839754,4.78630001,3044.6,3044.5,0.101]
[1763609840050,4.89730001,3044.6,3044.5,0.101]
[1763609840864,4.78630001,3044.6,3044.5,0.101]
[1763609841155,1.5017963,3044.6,3044.5,0.5532]
[1763609841356,5.36680001,3044.6,3044.5,0.001]
[1763609841555,4.89730001,3044.6,3044.5,0.101]
[1763609841757,4.89730001,3044.6,3044.5,0.5532]
[1763609841955,1.42349664,3044.6,3044.5,0.5532]
[1763609842157,4.70800035,3044.6,3044.5,0.101]
[1763609842660,5.17750035,3044.6,3044.5,0.101]
[1763609842859,4.70800035,3044.6,3044.5,0.101]
[1763609844066,5.66788787,3044.6,3044.5,0.001]
[1763609844265,13.21203274,3044.6,3044.5,0.001]
[1763609844429,13.17904522,3044.6,3044.5,0.001]
[1763609844633,13.31059668,3044.6,3044.5,0.001]
[1763609844967,12.38369668,3044.6,3044.5,0.101]
[1763609845332,12.85319668,3044.6,3044.5,0.101]
[1763609846265,12.85319668,3044.6,3044.5,0.001]
[1763609846565,12.85319668,3044.6,3044.5,0.101]
[1763609846773,12.38369668,3044.6,3044.5,0.101]
[1763609846931,12.74754522,3044.6,3044.5,0.101]
[1763609847135,12.25214522,3044.6,3044.5,0.101]
[1763609847534,12.74754522,3044.6,3044.5,0.101]
[1763609847873,12.74754522,3044.6,3044.5,0.001]
[1763609848079,12.25214522,3044.6,3044.5,0.001]
[1763609848967,12.25214522,3044.6,3044.5,0.101]
[1763609849679,12.25214522,3044.6,3044.5,1.0348]
[1763609849680,8.85664151,3044.6,3044.5,1.0348]
[1763609849860,1.72840187,3044.6,3044.5,0.5771]
[1763609850063,5.01290558,3044.6,3044.5,0.5771]
[1763609850251,1.72840187,3044.6,3044.5,0.5771]
[1763609850451,5.01290558,3044.6,3044.5,1.0348]
[1763609850650,5.01290558,3044.6,3044.5,0.4771]
[1763609850955,5.84263595,3044.6,3044.5,0.5771]
[1763609853285,6.37102347,3044.6,3044.5,0.101]
[1763609854089,6.82073595,3044.6,3044.5,0.001]
[1763609854259,7.00393595,3044.6,3044.5,0.001]
[1763609854972,6.52123595,3044.6,3044.5,0.001]
[1763609855298,7.70968647,3044.6,3044.5,0.001]
[1763609855990,1.31249664,3044.5,3044.2,0.001]
[1763609856292,0.686104,3044.3,3044.2,0.001]
[1763609856505,1.89800187,3044.3,3044.1,0.001]
[1763609856673,3.41015239,3044.2,3044.1,0.001]
[1763609856865,6.69508767,3044.2,3044.1,0.001]
[1763609857066,7.78108914,3044.2,3044.1,0.001]
[1763609858595,7.67008914,3044.2,3044.1,0.001]
[1763609858784,7.78108914,3044.2,3044.1,0.001]
[1763609859399,7.18738914,3044.2,3044.1,0.001]
[1763609859611,7.29838914,3044.2,3044.1,0.001]
[1763609860107,6.93665921,3044.2,3044.1,0.5556]
[1763609860409,6.82565921,3044.2,3044.1,0.5556]
[1763609860591,6.93665921,3044.2,3044.1,0.5556]
[1763609861180,7.42765921,3044.2,3044.1,0.101]
[1763609861382,8.68405816,3044.2,3044.1,0.001]
[1763609861582,6.93665921,3044.2,3044.1,0.4556]
[1763609861783,6.93665921,3044.2,3044.1,0.5556]
[1763609862114,6.93665921,3044.2,3044.1,0.101]
[1763609862310,7.42765921,3044.2,3044.1,0.101]
[1763609862514,0.405504,3044.1,3044.0,0.1]
[1763609862720,0.896504,3044.0,3043.9,0.001]
[1763609862921,1.41615975,3044.0,3043.9,0.001]
[1763609863127,1.41615975,3044.0,3043.9,0.101]
[1763609863360,4.70131086,3044.0,3043.9,0.5556]
[1763609864385,1.41615975,3044.0,3043.9,0.5556]
[1763609864587,4.81231086,3044.0,3043.9,0.5556]
[1763609867018,4.81231086,3044.0,3043.9,0.101]
[1763609867019,6.74660581,3044.0,3043.9,0.101]
[1763609867328,7.16629845,3044.0,3043.9,0.101]
[1763609867498,0.405504,3043.9,3043.8,0.101]
[1763609867812,5.654262,3043.9,3043.8,0.001]
[1763609868014,6.7326088,3043.9,3043.8,0.001]
[1763609868207,6.16080001,3043.9,3043.8,0.001]
[1763609869588,6.64810001,3043.9,3043.8,0.001]
[1763609869814,6.16080001,3043.9,3043.8,0.001]
[1763609869984,6.16080001,3043.9,3043.8,0.101]
[1763609870311,6.64810001,3043.9,3043.8,0.001]
[1763609870719,6.16080001,3043.9,3043.8,0.001]
[1763609870921,0.405504,3043.7,3043.6,0.1]
[1763609871086,0.71255244,3043.7,3043.6,0.1]
[1763609871286,1.41830296,3043.7,3043.6,0.5546]
[1763609871824,5.61077051,3043.7,3043.6,0.5546]
[1763609872191,5.61241047,3043.7,3043.6,0.5546]
[1763609873214,4.90501999,3043.7,3043.6,0.5546]
[1763609873589,4.90507205,3043.7,3043.6,0.5546]
[1763609874209,6.34247352,3043.7,3043.6,0.1]